[Event "Czech Juniors Boys 2024"]
[Site "Jaromerice nad Rokytnou"]
[Date "2024.03.12"]
[Round "6.1"]
[White "Lang, Simon"]
[Black "Hak, David"]
[Result "0-1"]
[ECO "B36"]
[WhiteElo "2043"]
[BlackElo "2283"]
[Annotator "RC"]
[PlyCount "68"]
[EventDate "2024.03.10"]
[EventType "tourn"]
[EventCountry "CZE"]
[SourceTitle "playchess.com"]
[Source "ChessBase"]
[SourceQuality "1"]
[TimeControl "40/5400+30:1800+30"]

1. e4 {[%emt 0:00:25]} c5 {[%emt 0:00:05]} 2. Nf3 {[%emt 0:00:27]} Nc6 {[%emt 0:00:08]} 3. d4 {[%emt 0:00:15]} cxd4 {[%emt 0:00:06]} 4. Nxd4 {[%emt 0:00:21]} g6 {[%emt 0:00:08]} 5. c4 {[%emt 0:00:43]} Nf6 {[%emt 0:00:09]} 6. Nc3 {[%emt 0:00:33]} d6 {[%emt 0:00:10]} 7. Be2 {[%emt 0:03:10]} Nxd4 {[%emt 0:00:09]} 8. Qxd4 {[%emt 0:00:08]} Bg7 {[%emt 0:00:14]} 9. Be3 {[%emt 0:00:28]} O-O {[%emt 0:00:15]} 10. Qd2 {[%emt 0:00:37]} a5 {[%emt 0:00:08]} 11. O-O {[%emt 0:01:57]} a4 {[%emt 0:00:09]} 12. Bd4 {[%emt 0:04:53]} Bd7 {[%emt 0:01:55]} 13. Bd3 {[%emt 0:03:01]} Bc6 {[%emt 0:02:25]} 14. Rae1 {[%emt 0:06:21]} Qa5 {[%emt 0:01:36]} 15. f4 {[%emt 0:04:43]} e5 {[%emt 0:00:57]} 16. fxe5 {[%emt 0:02:56]} Ng4 {[%emt 0:05:59]} 17. Qd1 {[%emt 0:18:19]} Nxe5 {[%emt 0:14:43]} 18. Rf4 {[%emt 0:05:06]} a3 {[%emt 0:02:49]} 19. Bb1 {[%emt 0:11:31]} axb2 {[%emt 0:02:28]} 20. Ref1 {[%emt 0:01:07]} Nxc4 {[%emt 0:02:04]} 21. Bxg7 {[%emt 0:01:04]} Kxg7 {[%emt 0:00:10]} 22. Qd4+ {[%emt 0:01:00]} Ne5 {[%emt 0:00:14]} 23. Qd2 {[%emt 0:00:29]} Qc5+ {[%emt 0:00:56]} 24. Kh1 {[%emt 0:00:11]} Nc4 {[%emt 0:03:25]} 25. Qe1 {[%emt 0:00:41]} Ra3 {[%emt 0:03:20]} 26. Qh4 {[%emt 0:00:32]} Ne3 {[%emt 0:02:39]} 27. Qf6+ {[%emt 0:02:47]} Kg8 {[%emt 0:00:11]} 28. Nd5 {[%emt 0:02:23]} Bxd5 {[%emt 0:00:18]} 29. exd5 {[%emt 0:00:10]} Nxf1 {[%emt 0:00:40]} 30. Bxg6 {[%emt 0:00:32]} hxg6 {[%emt 0:00:29]} 31. Rh4 {[%emt 0:00:40]} Ng3+ {[%emt 0:00:16]} 32. hxg3 {[%emt 0:00:06]} b1=Q+ {[%emt 0:00:11]} 33. Kh2 {[%emt 0:00:06]} Qcg1+ {[%emt 0:00:56]} 34. Kh3 {[%emt 0:00:07]} Qh1+ {[%emt 0:00:19]} 0-1

[Event "Czech Juniors Boys 2024"]
[Site "Jaromerice nad Rokytnou"]
[Date "2024.03.12"]
[Round "6.2"]
[White "Frank, Adam"]
[Black "Bohacek, Jan Andrej"]
[Result "1-0"]
[ECO "B12"]
[WhiteElo "2284"]
[BlackElo "2140"]
[Annotator "RC"]
[PlyCount "59"]
[EventDate "2024.03.10"]
[EventType "tourn"]
[EventCountry "CZE"]
[SourceTitle "playchess.com"]
[Source "ChessBase"]
[SourceQuality "1"]
[TimeControl "40/5400+30:1800+30"]

1. e4 {[%emt 0:00:06]} c6 {[%emt 0:00:07]} 2. d4 {[%emt 0:00:06]} d5 {[%emt 0:00:05]} 3. e5 {[%emt 0:00:03]} c5 {[%emt 0:00:07]} 4. Nf3 {[%emt 0:00:04]} cxd4 {[%emt 0:00:09]} 5. Nxd4 {[%emt 0:00:03]} Nc6 {[%emt 0:00:23]} 6. c4 {[%emt 0:00:14]} e6 {[%emt 0:01:53]} 7. Nc3 {[%emt 0:00:06]} Bb4 {[%emt 0:01:44]} 8. Nxc6 {[%emt 0:00:06]} bxc6 {[%emt 0:00:07]} 9. Bd3 {[%emt 0:00:09]} Ne7 {[%emt 0:02:19]} 10. O-O {[%emt 0:02:06]} Ba6 {[%emt 0:01:08]} 11. Qe2 {[%emt 0:13:34]} Bxc3 {[%emt 0:23:29]} 12. bxc3 {[%emt 0:00:06]} Bxc4 {[%emt 0:03:21]} 13. Bxc4 {[%emt 0:04:22]} dxc4 {[%emt 0:00:10]} 14. Ba3 {[%emt 0:01:10]} O-O {[%emt 0:15:04]} 15. Rfd1 {[%emt 0:00:29]} Qc7 {[%emt 0:00:57]} 16. Bd6 {[%emt 0:02:41]} Qd7 {[%emt 0:00:49]} 17. Qxc4 {[%emt 0:01:36]} Rfc8 {[%emt 0:03:23]} 18. Qc5 {[%emt 0:03:56]} Nd5 {[%emt 0:04:53]} 19. Rd2 {[%emt 0:15:00]} Qb7 {[%emt 0:14:16]} 20. c4 {[%emt 0:00:32]} Nb6 {[%emt 0:00:43]} 21. a4 {[%emt 0:09:52]} Nxa4 {[%emt 0:04:13]} 22. Qa3 {[%emt 0:11:42]} Nb6 {[%emt 0:00:28]} 23. Rd4 {[%emt 0:00:05]} c5 {[%emt 0:04:24]} 24. Rg4 {[%emt 0:00:04]} Nd7 {[%emt 0:01:48]} 25. Qg3 {[%emt 0:02:11]} g6 {[%emt 0:00:08]} 26. h3 {[%emt 0:03:11]} a5 {[%emt 0:01:33]} 27. Qh4 {[%emt 0:01:39]} Kg7 {[%emt 0:10:41]} 28. Rf4 {[%emt 0:07:09]} Rf8 {[%emt 0:04:29]} 29. Ra3 {[%emt 0:06:07]} h6 {[%emt 0:01:14]} 30. Be7 {[%emt 0:09:51]} 1-0

[Event "Czech Juniors Boys 2024"]
[Site "Jaromerice nad Rokytnou"]
[Date "2024.03.12"]
[Round "6.3"]
[White "Jares, Michal"]
[Black "Bokhnak, Timofey"]
[Result "1-0"]
[ECO "D78"]
[WhiteElo "2347"]
[BlackElo "2241"]
[Annotator "RC"]
[PlyCount "138"]
[EventDate "2024.03.10"]
[EventType "tourn"]
[EventCountry "CZE"]
[SourceTitle "playchess.com"]
[Source "ChessBase"]
[SourceQuality "1"]
[TimeControl "40/5400+30:1800+30"]

1. Nf3 {[%emt 0:00:02]} d5 {[%emt 0:00:23]} 2. g3 {[%emt 0:00:03]} Nf6 {[%emt 0:00:10]} 3. Bg2 {[%emt 0:00:02]} g6 {[%emt 0:00:40]} 4. c4 {[%emt 0:01:57]} c6 {[%emt 0:00:44]} 5. d4 {[%emt 0:00:15]} Bg7 {[%emt 0:00:15]} 6. O-O {[%emt 0:00:04]} O-O {[%emt 0:00:11]} 7. Qb3 {[%emt 0:00:31]} dxc4 {[%emt 0:02:40]} 8. Qxc4 {[%emt 0:00:03]} Nbd7 {[%emt 0:05:33]} 9. Qc2 {[%emt 0:05:46]} Nb6 {[%emt 0:07:53]} 10. Nc3 {[%emt 0:00:04]} Bg4 {[%emt 0:13:14]} 11. Rd1 {[%emt 0:00:46]} Qc8 {[%emt 0:06:55]} 12. Bg5 {[%emt 0:06:27]} h6 {[%emt 0:08:02]} 13. Bf4 {[%emt 0:03:11]} Nfd5 {[%emt 0:04:11]} 14. Be5 {[%emt 0:05:24]} f6 {[%emt 0:04:20]} 15. Bf4 {[%emt 0:01:30]} Nxf4 {[%emt 0:05:02]} 16. gxf4 {[%emt 0:00:15]} Qf5 {[%emt 0:06:01]} 17. Qxf5 {[%emt 0:01:55]} Bxf5 {[%emt 0:00:12]} 18. Nh4 {[%emt 0:00:53]} Kf7 {[%emt 0:03:05]} 19. Nxf5 {[%emt 0:01:14]} gxf5 {[%emt 0:00:02]} 20. d5 {[%emt 0:02:06]} Rac8 {[%emt 0:01:34]} 21. Rac1 {[%emt 0:02:21]} Nxd5 {[%emt 0:06:55]} 22. Nxd5 {[%emt 0:00:27]} cxd5 {[%emt 0:00:04]} 23. Bxd5+ {[%emt 0:00:43]} e6 {[%emt 0:00:06]} 24. Bxb7 {[%emt 0:00:14]} Rxc1 {[%emt 0:00:05]} 25. Rxc1 {[%emt 0:00:04]} Re8 {[%emt 0:00:12]} 26. Bf3 {[%emt 0:00:35]} Kg6 {[%emt 0:01:06]} 27. Rc7 {[%emt 0:00:44]} e5 {[%emt 0:01:10]} 28. Rxa7 {[%emt 0:02:42]} Bf8 {[%emt 0:01:04]} 29. Bd5 {[%emt 0:00:44]} Re7 {[%emt 0:03:23]} 30. Ra8 {[%emt 0:01:32]} Kg7 {[%emt 0:00:20]} 31. a4 {[%emt 0:01:51]} exf4 {[%emt 0:00:56]} 32. Bc4 {[%emt 0:00:33]} f3 {[%emt 0:01:22]} 33. exf3 {[%emt 0:03:32]} Re1+ {[%emt 0:00:36]} 34. Kg2 {[%emt 0:00:02]} Bc5 {[%emt 0:00:56]} 35. Rg8+ {[%emt 0:00:34]} Kh7 {[%emt 0:00:01]} 36. Rc8 {[%emt 0:00:57]} Bd4 {[%emt 0:00:27]} 37. b4 {[%emt 0:00:44]} Rb1 {[%emt 0:00:11]} 38. Bg8+ {[%emt 0:00:52]} Kg6 {[%emt 0:01:36]} 39. Rc4 {[%emt 0:00:27]} Ba7 {[%emt 0:00:39]} 40. b5 {[%emt 0:05:21]} Rb2 {[%emt 0:00:14]} 41. Bh7+ {[%emt 0:30:28]} Kh5 {[%emt 0:33:00]} 42. Kh3 {[%emt 0:03:15]} Rxf2 {[%emt 0:03:10]} 43. Kg3 {[%emt 0:04:24]} Be3 {[%emt 0:05:30]} 44. Bxf5 {[%emt 0:07:55]} Kg5 {[%emt 0:00:36]} 45. Bd7 {[%emt 0:07:14]} h5 {[%emt 0:03:14]} 46. f4+ {[%emt 0:03:03]} Kh6 {[%emt 0:01:19]} 47. h4 {[%emt 0:04:21]} Ra2 {[%emt 0:00:00]} 48. Bf5 {[%emt 0:00:00]} Kg7 {[%emt 0:00:00]} 49. Rc7+ {[%emt 0:00:00]} Kf8 {[%emt 0:00:00]} 50. Rc8+ {[%emt 0:00:00]} Ke7 {[%emt 0:00:00]} 51. Ra8 {[%emt 0:00:00]} Ra3 {[%emt 0:00:00]} 52. Be4 {[%emt 0:00:00]} Bd2+ {[%emt 0:00:00]} 53. Bf3 {[%emt 0:00:00]} Be1+ {[%emt 0:00:00]} 54. Kg2 {[%emt 0:00:00]} Ra2+ {[%emt 0:00:00]} 55. Kh1 {[%emt 0:00:00]} Rb2 {[%emt 0:00:00]} 56. Bc6 {[%emt 0:00:00]} Kd6 {[%emt 0:00:00]} 57. a5 {[%emt 0:00:00]} Ra2 {[%emt 0:00:00]} 58. Rd8+ {[%emt 0:00:00]} Kc5 {[%emt 0:00:00]} 59. Rd5+ {[%emt 0:00:00]} Kb4 {[%emt 0:00:00]} 60. b6 {[%emt 0:00:00]} Bf2 {[%emt 0:00:05]} 61. b7 {[%emt 0:00:00]} Ba7 {[%emt 0:00:29]} 62. Rd8 {[%emt 0:00:00]} Kc5 {[%emt 0:01:44]} 63. Ra8 {[%emt 0:00:00]} Bb8 {[%emt 0:01:39]} 64. Bf3 {[%emt 0:00:33]} Bxf4 {[%emt 0:00:42]} 65. a6 {[%emt 0:00:22]} Kd4 {[%emt 0:01:42]} 66. a7 {[%emt 0:01:39]} Ra1+ {[%emt 0:04:55]} 67. Kg2 {[%emt 0:00:02]} Ra2+ {[%emt 0:00:05]} 68. Be2 {[%emt 0:00:58]} Rxe2+ {[%emt 0:00:08]} 69. Kf3 {[%emt 0:00:21]} Kd5 {[%emt 0:01:00]} 1-0

[Event "Czech Juniors Boys 2024"]
[Site "Jaromerice nad Rokytnou"]
[Date "2024.03.12"]
[Round "6.4"]
[White "Jun, Rudolf"]
[Black "Paseka, Matyas"]
[Result "1/2-1/2"]
[ECO "B34"]
[WhiteElo "2243"]
[BlackElo "2233"]
[Annotator "RC"]
[PlyCount "62"]
[EventDate "2024.03.10"]
[EventType "tourn"]
[EventCountry "CZE"]
[SourceTitle "playchess.com"]
[Source "ChessBase"]
[SourceQuality "1"]
[TimeControl "40/5400+30:1800+30"]

1. e4 {[%emt 0:00:03]} c5 {[%emt 0:00:07]} 2. Nf3 {[%emt 0:00:09]} Nc6 {[%emt 0:00:08]} 3. Nc3 {[%emt 0:01:12]} g6 {[%emt 0:05:20]} 4. d4 {[%emt 0:05:54]} cxd4 {[%emt 0:00:15]} 5. Nxd4 {[%emt 0:00:07]} Bg7 {[%emt 0:00:09]} 6. Be3 {[%emt 0:00:34]} Nf6 {[%emt 0:01:12]} 7. Be2 {[%emt 0:01:42]} O-O {[%emt 0:01:09]} 8. O-O {[%emt 0:00:35]} d5 {[%emt 0:27:46]} 9. exd5 {[%emt 0:00:38]} Nxd5 {[%emt 0:00:13]} 10. Nxd5 {[%emt 0:00:54]} Nxd4 {[%emt 0:00:17]} 11. Bxd4 {[%emt 0:01:02]} Qxd5 {[%emt 0:00:07]} 12. Bxg7 {[%emt 0:00:14]} Qxd1 {[%emt 0:00:07]} 13. Rfxd1 {[%emt 0:00:30]} Kxg7 {[%emt 0:00:07]} 14. Rd2 {[%emt 0:02:20]} Be6 {[%emt 0:01:16]} 15. Rad1 {[%emt 0:01:54]} Rac8 {[%emt 0:00:50]} 16. f4 {[%emt 0:02:49]} Rc7 {[%emt 0:00:49]} 17. a3 {[%emt 0:00:52]} Rfc8 {[%emt 0:01:06]} 18. c3 {[%emt 0:00:32]} h5 {[%emt 0:01:58]} 19. h4 {[%emt 0:01:34]} Kf6 {[%emt 0:01:31]} 20. Kf2 {[%emt 0:00:29]} Bb3 {[%emt 0:03:29]} 21. Re1 {[%emt 0:00:08]} Be6 {[%emt 0:00:09]} 22. Bf3 {[%emt 0:00:45]} b6 {[%emt 0:01:18]} 23. Ke3 {[%emt 0:04:36]} Bf5 {[%emt 0:11:44]} 24. Red1 {[%emt 0:02:04]} Be6 {[%emt 0:01:27]} 25. Rd4 {[%emt 0:00:46]} Bb3 {[%emt 0:01:54]} 26. R1d2 {[%emt 0:00:25]} Be6 {[%emt 0:00:18]} 27. Bd5 {[%emt 0:02:10]} Rd8 {[%emt 0:12:33]} 28. Bxe6 {[%emt 0:00:39]} Rxd4 {[%emt 0:00:06]} 29. Rxd4 {[%emt 0:00:06]} Kxe6 {[%emt 0:00:04]} 30. c4 {[%emt 0:04:19]} Kf5 {[%emt 0:02:10]} 31. Kf3 {[%emt 0:08:09]} e6 {[%emt 0:04:09]} 1/2-1/2

[Event "Czech Juniors Boys 2024"]
[Site "Jaromerice nad Rokytnou"]
[Date "2024.03.12"]
[Round "6.5"]
[White "Seidl, Jan"]
[Black "Skypala, Ondrej"]
[Result "1-0"]
[ECO "E00"]
[WhiteElo "2230"]
[BlackElo "2234"]
[Annotator "RC"]
[PlyCount "69"]
[EventDate "2024.03.10"]
[EventType "tourn"]
[EventCountry "CZE"]
[SourceTitle "playchess.com"]
[Source "ChessBase"]
[SourceQuality "1"]
[TimeControl "40/5400+30:1800+30"]

1. d4 {[%emt 0:00:03]} Nf6 {[%emt 0:00:26]} 2. c4 {[%emt 0:00:05]} e6 {[%emt 0:00:18]} 3. g3 {[%emt 0:00:06]} Bb4+ {[%emt 0:00:14]} 4. Nd2 {[%emt 0:00:07]} O-O {[%emt 0:00:31]} 5. Bg2 {[%emt 0:01:04]} c5 {[%emt 0:01:50]} 6. dxc5 {[%emt 0:07:41]} Bxc5 {[%emt 0:02:07]} 7. e3 {[%emt 0:06:24]} Nc6 {[%emt 0:00:56]} 8. Ngf3 {[%emt 0:01:03]} a5 {[%emt 0:02:02]} 9. O-O {[%emt 0:01:01]} a4 {[%emt 0:00:04]} 10. a3 {[%emt 0:02:13]} d6 {[%emt 0:03:21]} 11. b4 {[%emt 0:00:55]} axb3 {[%emt 0:00:05]} 12. Nxb3 {[%emt 0:00:12]} Bb6 {[%emt 0:05:15]} 13. Bb2 {[%emt 0:06:53]} Na5 {[%emt 0:04:16]} 14. Nxa5 {[%emt 0:05:23]} Rxa5 {[%emt 0:00:08]} 15. Nd4 {[%emt 0:04:14]} Qe7 {[%emt 0:05:21]} 16. a4 {[%emt 0:18:16]} Rd8 {[%emt 0:10:09]} 17. Qb3 {[%emt 0:03:29]} Bxd4 {[%emt 0:16:37]} 18. Bxd4 {[%emt 0:00:39]} Rh5 {[%emt 0:00:04]} 19. Rad1 {[%emt 0:11:04]} e5 {[%emt 0:02:19]} 20. Bb6 {[%emt 0:00:15]} Re8 {[%emt 0:00:53]} 21. Qb4 {[%emt 0:02:09]} Ng4 {[%emt 0:03:06]} 22. Qxd6 {[%emt 0:01:54]} Qg5 {[%emt 0:01:20]} 23. f4 {[%emt 0:06:13]} Qh6 {[%emt 0:06:24]} 24. Qe7 {[%emt 0:03:30]} Qe6 {[%emt 0:02:55]} 25. Qxe6 {[%emt 0:00:09]} Bxe6 {[%emt 0:00:08]} 26. h3 {[%emt 0:00:43]} Nf6 {[%emt 0:01:14]} 27. g4 {[%emt 0:00:34]} Rh4 {[%emt 0:00:07]} 28. c5 {[%emt 0:03:50]} Bc4 {[%emt 0:04:22]} 29. Bxb7 {[%emt 0:02:59]} Bxf1 {[%emt 0:00:07]} 30. Kxf1 {[%emt 0:00:05]} Rxh3 {[%emt 0:00:05]} 31. c6 {[%emt 0:02:06]} exf4 {[%emt 0:06:00]} 32. c7 {[%emt 0:01:34]} fxe3 {[%emt 0:01:09]} 33. Rd8 {[%emt 0:00:15]} e2+ {[%emt 0:00:33]} 34. Ke1 {[%emt 0:00:09]} Rb3 {[%emt 0:00:58]} 35. Rxe8+ {[%emt 0:00:12]} 1-0

[Event "Czech Juniors Boys 2024"]
[Site "Jaromerice nad Rokytnou"]
[Date "2024.03.12"]
[Round "6.6"]
[White "Soucek, Petr"]
[Black "Vilimek, Vit"]
[Result "1-0"]
[ECO "A52"]
[WhiteElo "2209"]
[BlackElo "2061"]
[Annotator "RC"]
[PlyCount "57"]
[EventDate "2024.03.10"]
[EventType "tourn"]
[EventCountry "CZE"]
[SourceTitle "playchess.com"]
[Source "ChessBase"]
[SourceQuality "1"]
[TimeControl "40/5400+30:1800+30"]

1. d4 {[%emt 0:00:16]} Nf6 {[%emt 0:00:01]} 2. c4 {[%emt 0:00:07]} e5 {[%emt 0:00:05]} 3. dxe5 {[%emt 0:00:05]} Ng4 {[%emt 0:00:02]} 4. e3 {[%emt 0:00:09]} Nxe5 {[%emt 0:00:16]} 5. f4 {[%emt 0:00:42]} Nec6 {[%emt 0:00:16]} 6. Ne2 {[%emt 0:00:21]} Bc5 {[%emt 0:01:07]} 7. Ng3 {[%emt 0:00:38]} d6 {[%emt 0:06:59]} 8. Be2 {[%emt 0:00:46]} Qe7 {[%emt 0:02:21]} 9. Nc3 {[%emt 0:00:56]} a5 {[%emt 0:08:14]} 10. Nd5 {[%emt 0:04:47]} Qd8 {[%emt 0:00:01]} 11. O-O {[%emt 0:01:07]} Ne7 {[%emt 0:04:42]} 12. Kh1 {[%emt 0:32:09]} Nbc6 {[%emt 0:16:21]} 13. b3 {[%emt 0:11:39]} O-O {[%emt 0:22:52]} 14. Bb2 {[%emt 0:01:16]} Nf5 {[%emt 0:03:01]} 15. Nh5 {[%emt 0:07:26]} f6 {[%emt 0:07:21]} 16. Bd3 {[%emt 0:07:10]} Nb4 {[%emt 0:12:04]} 17. Bxf5 {[%emt 0:03:21]} Bxf5 {[%emt 0:00:13]} 18. Nxb4 {[%emt 0:00:11]} g6 {[%emt 0:01:30]} 19. Nxf6+ {[%emt 0:10:44]} Rxf6 {[%emt 0:00:17]} 20. Bxf6 {[%emt 0:00:12]} Qxf6 {[%emt 0:00:14]} 21. Nd5 {[%emt 0:04:38]} Qg7 {[%emt 0:01:37]} 22. Qd2 {[%emt 0:09:39]} Re8 {[%emt 0:02:40]} 23. Rae1 {[%emt 0:00:39]} c6 {[%emt 0:00:17]} 24. b4 {[%emt 0:00:45]} Ba7 {[%emt 0:00:34]} 25. e4 {[%emt 0:00:39]} Bxe4 {[%emt 0:00:21]} 26. Nc3 {[%emt 0:00:17]} d5 {[%emt 0:00:45]} 27. cxd5 {[%emt 0:00:11]} cxd5 {[%emt 0:00:04]} 28. Nxe4 {[%emt 0:00:16]} dxe4 {[%emt 0:00:09]} 29. Rxe4 {[%emt 0:00:17]} 1-0

[Event "Czech Juniors Boys 2024"]
[Site "Jaromerice nad Rokytnou"]
[Date "2024.03.13"]
[Round "7.1"]
[White "Vilimek, Vit"]
[Black "Lang, Simon"]
[Result "1-0"]
[ECO "C01"]
[WhiteElo "2061"]
[BlackElo "2043"]
[Annotator "RC"]
[PlyCount "51"]
[EventDate "2024.03.10"]
[EventType "tourn"]
[EventCountry "CZE"]
[SourceTitle "playchess.com"]
[Source "ChessBase"]
[SourceQuality "1"]
[TimeControl "40/5400+30:1800+30"]

1. e4 {[%emt 0:00:02]} e6 {[%emt 0:00:41]} 2. d4 {[%emt 0:00:33]} d5 {[%emt 0:00:27]} 3. exd5 {[%emt 0:00:04]} exd5 {[%emt 0:00:13]} 4. Nf3 {[%emt 0:00:03]} Nc6 {[%emt 0:02:10]} 5. c3 {[%emt 0:03:53]} Bd6 {[%emt 0:00:58]} 6. Bd3 {[%emt 0:00:11]} Nge7 {[%emt 0:00:51]} 7. Qc2 {[%emt 0:00:43]} Bg4 {[%emt 0:01:02]} 8. Nbd2 {[%emt 0:00:39]} Qd7 {[%emt 0:00:53]} 9. O-O {[%emt 0:01:01]} O-O-O {[%emt 0:04:11]} 10. b4 {[%emt 0:00:36]} Ng6 {[%emt 0:04:14]} 11. h3 {[%emt 0:01:21]} Be6 {[%emt 0:00:22]} 12. Nb3 {[%emt 0:02:05]} Nce7 {[%emt 0:12:00]} 13. Nc5 {[%emt 0:05:30]} Bxc5 {[%emt 0:07:14]} 14. bxc5 {[%emt 0:00:11]} c6 {[%emt 0:06:31]} 15. Rb1 {[%emt 0:32:19]} Bf5 {[%emt 0:13:38]} 16. Bxf5 {[%emt 0:00:19]} Nxf5 {[%emt 0:01:37]} 17. Qa4 {[%emt 0:00:14]} a6 {[%emt 0:01:24]} 18. Bd2 {[%emt 0:09:51]} Qc7 {[%emt 0:09:28]} 19. Rb2 {[%emt 0:08:07]} Kd7 {[%emt 0:02:17]} 20. c4 {[%emt 0:01:02]} Rb8 {[%emt 0:06:09]} 21. cxd5 {[%emt 0:00:07]} Rhe8 {[%emt 0:01:13]} 22. d6 {[%emt 0:00:49]} Qd8 {[%emt 0:00:08]} 23. Rfb1 {[%emt 0:01:32]} Kc8 {[%emt 0:00:52]} 24. Rxb7 {[%emt 0:01:06]} Rxb7 {[%emt 0:00:06]} 25. Qxc6+ {[%emt 0:00:06]} Rc7 {[%emt 0:00:42]} 26. d7+ {[%emt 0:00:10]} 1-0

[Event "Czech Juniors Boys 2024"]
[Site "Jaromerice nad Rokytnou"]
[Date "2024.03.13"]
[Round "7.2"]
[White "Skypala, Ondrej"]
[Black "Soucek, Petr"]
[Result "1-0"]
[ECO "A09"]
[WhiteElo "2234"]
[BlackElo "2209"]
[Annotator "RC"]
[PlyCount "71"]
[EventDate "2024.03.10"]
[EventType "tourn"]
[EventCountry "CZE"]
[SourceTitle "playchess.com"]
[Source "ChessBase"]
[SourceQuality "1"]
[TimeControl "40/5400+30:1800+30"]

1. c4 {[%emt 0:01:00]} e6 {[%emt 0:00:38]} 2. g3 {[%emt 0:00:06]} d5 {[%emt 0:00:06]} 3. Bg2 {[%emt 0:00:16]} d4 {[%emt 0:00:04]} 4. Nf3 {[%emt 0:00:06]} c5 {[%emt 0:00:06]} 5. O-O {[%emt 0:00:30]} Nc6 {[%emt 0:00:13]} 6. d3 {[%emt 0:00:22]} Nf6 {[%emt 0:00:06]} 7. Bg5 {[%emt 0:00:06]} Be7 {[%emt 0:03:49]} 8. Nbd2 {[%emt 0:01:53]} h6 {[%emt 0:02:51]} 9. Bxf6 {[%emt 0:00:07]} Bxf6 {[%emt 0:00:31]} 10. a3 {[%emt 0:00:11]} O-O {[%emt 0:01:05]} 11. Nb3 {[%emt 0:07:34]} Be7 {[%emt 0:02:46]} 12. e3 {[%emt 0:00:06]} e5 {[%emt 0:17:18]} 13. exd4 {[%emt 0:00:14]} exd4 {[%emt 0:00:16]} 14. Re1 {[%emt 0:01:14]} Qc7 {[%emt 0:05:21]} 15. Nfd2 {[%emt 0:01:44]} a5 {[%emt 0:08:42]} 16. Qe2 {[%emt 0:08:09]} a4 {[%emt 0:18:30]} 17. Bxc6 {[%emt 0:01:34]} Qxc6 {[%emt 0:00:33]} 18. Nxd4 {[%emt 0:04:55]} cxd4 {[%emt 0:00:38]} 19. Qxe7 {[%emt 0:00:08]} Bf5 {[%emt 0:03:00]} 20. Qe5 {[%emt 0:03:11]} Bxd3 {[%emt 0:00:21]} 21. Qxd4 {[%emt 0:00:06]} Rfd8 {[%emt 0:00:28]} 22. Qc3 {[%emt 0:01:52]} Bf5 {[%emt 0:07:26]} 23. Re3 {[%emt 0:03:38]} Rd6 {[%emt 0:02:36]} 24. Rae1 {[%emt 0:05:46]} Rad8 {[%emt 0:00:54]} 25. R1e2 {[%emt 0:13:47]} f6 {[%emt 0:05:15]} 26. f3 {[%emt 0:04:48]} Bg6 {[%emt 0:07:40]} 27. Ne4 {[%emt 0:05:30]} Rd1+ {[%emt 0:05:18]} 28. Kg2 {[%emt 0:03:27]} R1d4 {[%emt 0:05:57]} 29. Rd2 {[%emt 0:03:07]} Rxd2+ {[%emt 0:00:30]} 30. Nxd2 {[%emt 0:00:06]} Qd6 {[%emt 0:00:40]} 31. Re2 {[%emt 0:01:59]} Bd3 {[%emt 0:00:17]} 32. c5 {[%emt 0:02:39]} Qd5 {[%emt 0:00:40]} 33. Re7 {[%emt 0:01:40]} Kf8 {[%emt 0:01:06]} 34. Re1 {[%emt 0:00:37]} Rc8 {[%emt 0:01:01]} 35. Qb4 {[%emt 0:01:52]} Qxc5 {[%emt 0:00:39]} 36. Rc1 {[%emt 0:00:06]} 1-0